[Event "Catalan Youth Championship 2024"]
[Site "Cambrils"]
[Date "2024.03.25"]
[Round "4.4"]
[White "Rosique Cano, Xavier"]
[Black "Serradell Munoz, Silvia"]
[Result "1/2-1/2"]
[ECO "B50"]
[WhiteElo "1433"]
[BlackElo "1564"]
[Annotator "NA RC"]
[PlyCount "57"]
[EventDate "2024.03.13"]
[EventType "swiss"]
[EventCountry "ESP"]
[SourceTitle "playchess.com"]
[Source "ChessBase"]
[SourceQuality "1"]
[TimeControl "5400+30"]

1. e4 {[%emt 0:00:02]} c5 {[%emt 0:00:09]} 2. Bc4 {[%emt 0:00:19]} g6 {[%emt 0:00:24]} 3. Nc3 {[%emt 0:00:53]} Bg7 {[%emt 0:00:41]} 4. Nf3 {[%emt 0:00:21]} Nc6 {[%emt 0:00:37]} 5. O-O {[%emt 0:01:43]} Nf6 {[%emt 1:31:09]} 6. a3 {[%emt 0:02:13]} O-O {[%emt 0:00:00]} 7. d3 {[%emt 0:00:31]} d6 {[%emt 0:00:00]} 8. h3 {[%emt 0:01:23]} Bd7 {[%emt 0:00:00]} 9. Be3 {[%emt 0:00:36]} Re8 {[%emt 0:00:00]} 10. Qd2 {[%emt 0:02:44]} a6 {[%emt 0:00:00]} 11. Bh6 {[%emt 0:01:00]} Bh8 {[%emt 0:00:00]} 12. Ng5 {[%emt 0:05:05]} Ne5 {[%emt 0:00:00]} 13. Bb3 {[%emt 0:00:37]} e6 {[%emt 0:00:00]} 14. f4 {[%emt 0:00:23]} Nc6 {[%emt 0:00:00]} 15. Nf3 {[%emt 0:00:41]} Qb6 {[%emt 0:00:00]} 16. Kh1 {[%emt 0:03:08]} Nh5 {[%emt 0:00:00]} 17. Kh2 {[%emt 0:02:11]} e5 {[%emt 0:00:00]} 18. Ng5 {[%emt 0:01:26]} Be6 {[%emt 0:00:00]} 19. Nxe6 {[%emt 0:00:45]} fxe6 {[%emt 0:00:00]} 20. f5 {[%emt 0:00:15]} Nd4 {[%emt 0:00:00]} 21. fxg6 {[%emt 0:02:07]} hxg6 {[%emt 0:00:00]} 22. Qf2 {[%emt 0:00:32]} Qc7 {[%emt 0:00:00]} 23. Qd2 {[%emt 0:04:40]} Qe7 {[%emt 0:00:00]} 24. Bg5 {[%emt 0:04:07]} Qg7 {[%emt 0:00:00]} 25. Bh6 {[%emt 0:00:34]} Qe7 {[%emt 0:00:00]} 26. Bg5 {[%emt 0:00:22]} Qg7 {[%emt 0:00:00]} 27. Bh6 {[%emt 0:00:13]} Qe7 {[%emt 0:00:00]} 28. Bg5 {[%emt 0:00:19]} Qg7 {[%emt 0:00:00]} 29. Bh6 {[%emt 0:00:18]} 1/2-1/2

[Event "Catalan Youth Championship 2024"]
[Site "Cambrils"]
[Date "2024.03.25"]
[Round "4.5"]
[White "Villa Peiro, Joan"]
[Black "Tallada Serret, Gerard"]
[Result "0-1"]
[ECO "D00"]
[WhiteElo "1720"]
[BlackElo "2085"]
[Annotator "RC"]
[PlyCount "64"]
[EventDate "2024.03.13"]
[EventType "swiss"]
[EventCountry "ESP"]
[SourceTitle "playchess.com"]
[Source "ChessBase"]
[SourceQuality "1"]
[TimeControl "5400+30"]

1. d4 {[%emt 0:00:03]} d5 {[%emt 0:00:08]} 2. Bf4 {[%emt 0:00:06]} c5 {[%emt 0:00:24]} 3. e3 {[%emt 0:00:05]} Nc6 {[%emt 0:00:20]} 4. Nf3 {[%emt 0:00:09]} Bg4 {[%emt 0:00:11]} 5. Be2 {[%emt 0:01:06]} e6 {[%emt 0:00:17]} 6. Nbd2 {[%emt 0:01:10]} Bd6 {[%emt 0:04:05]} 7. Bxd6 {[%emt 0:02:59]} Qxd6 {[%emt 0:00:10]} 8. dxc5 {[%emt 0:00:06]} Qxc5 {[%emt 0:00:12]} 9. a3 {[%emt 1:29:16]} a5 {[%emt 0:12:19]} 10. b4 {[%emt 0:00:00]} Qc3 {[%emt 0:08:04]} 11. b5 {[%emt 0:01:00]} Ne5 {[%emt 0:00:35]} 12. O-O {[%emt 0:00:00]} Nxf3+ {[%emt 0:00:27]} 13. Nxf3 {[%emt 0:00:00]} Nf6 {[%emt 0:00:16]} 14. Nd4 {[%emt 0:00:00]} Bxe2 {[%emt 0:00:25]} 15. Qxe2 {[%emt 0:00:00]} O-O {[%emt 1:10:07]} 16. Qd3 {[%emt 0:00:00]} Rfc8 {[%emt 0:00:00]} 17. Rac1 {[%emt 0:00:00]} Qc5 {[%emt 0:00:00]} 18. a4 {[%emt 0:00:00]} Rc7 {[%emt 0:00:00]} 19. Nb3 {[%emt 0:00:00]} Qc4 {[%emt 0:02:00]} 20. Qd4 {[%emt 0:04:30]} Nd7 {[%emt 0:00:00]} 21. Nd2 {[%emt 0:00:00]} Qxd4 {[%emt 0:00:00]} 22. exd4 {[%emt 0:00:00]} Rac8 {[%emt 0:00:00]} 23. Nb3 {[%emt 0:00:00]} b6 {[%emt 0:00:00]} 24. f4 {[%emt 0:00:00]} Nf6 {[%emt 0:00:00]} 25. c3 {[%emt 0:00:00]} g6 {[%emt 0:00:00]} 26. Rf3 {[%emt 0:00:00]} Rc4 {[%emt 0:00:00]} 27. Ra1 {[%emt 0:00:00]} Ne4 {[%emt 0:00:00]} 28. Rc1 {[%emt 0:00:00]} Rxa4 {[%emt 0:00:00]} 29. Kh1 {[%emt 0:00:00]} Rac4 {[%emt 0:00:00]} 30. h3 {[%emt 0:00:00]} a4 {[%emt 0:00:00]} 31. Na1 {[%emt 0:05:30]} Nxc3 {[%emt 0:00:00]} 32. Rd3 {[%emt 0:00:00]} Nxb5 {[%emt 0:06:30]} 0-1

[Event "Catalan Youth Championship 2024"]
[Site "Cambrils"]
[Date "2024.03.25"]
[Round "4.6"]
[White "Bru Montoya, Pau"]
[Black "Perez Llaurado, Adria"]
[Result "1-0"]
[ECO "C50"]
[WhiteElo "1850"]
[BlackElo "1749"]
[Annotator "NA RC"]
[PlyCount "127"]
[EventDate "2024.03.13"]
[EventType "swiss"]
[EventCountry "ESP"]
[SourceTitle "playchess.com"]
[Source "ChessBase"]
[SourceQuality "1"]
[TimeControl "5400+30"]

1. e4 {[%emt 1:31:00]} e5 {[%emt 1:31:00]} 2. Nf3 {[%emt 0:00:30]} Nc6 {[%emt 0:00:30]} 3. Bc4 {[%emt 0:00:30]} Bc5 {[%emt 0:00:30]} 4. O-O {[%emt 0:00:30]} d6 {[%emt 0:00:30]} 5. a3 {[%emt 0:00:30]} Nf6 {[%emt 0:00:30]} 6. d3 {[%emt 0:00:30]} Bg4 {[%emt 0:00:30] C50: Italienische Partie.} 7. c3 {[%emt 0:00:30]} Bb6 {[%emt 0:00:30]} 8. Be3 {[%emt 0:00:30]} O-O {[%emt 0:00:30]} 9. Bxb6 {[%emt 0:00:30]} axb6 {[%emt 0:00:30]} 10. Nbd2 {[%emt 0:00:30]} Ne7 {[%emt 0:00:30]} 11. Qc2 {[%emt 0:00:30]} Ng6 {[%emt 0:00:30]} 12. d4 {[%emt 0:00:30]} Nd7 {[%emt 0:00:30]} 13. h3 {[%emt 0:00:30]} Bxf3 {[%emt 0:00:30]} 14. Nxf3 {[%emt 0:00:30]} Qf6 {[%emt 0:00:30]} 15. Rfe1 {[%emt 0:00:30]} Rfe8 {[%emt 0:00:30]} 16. Rad1 {[%emt 0:00:30]} Ndf8 {[%emt 0:00:30]} 17. Rd2 {[%emt 0:00:30]} Nf4 {[%emt 0:00:30]} 18. h4 {[%emt 0:00:30]} N8g6 {[%emt 0:00:30]} 19. dxe5 {[%emt 0:00:30]} Nxe5 {[%emt 0:00:30]} 20. Nxe5 {[%emt 0:00:30]} Qxe5 {[%emt 0:00:30]} 21. g3 {[%emt 0:00:30]} Ne6 {[%emt 0:00:30]} 22. Rd5 {[%emt 0:00:30]} Qf6 {[%emt 0:00:30]} 23. e5 {[%emt 0:00:30]} dxe5 {[%emt 0:00:30]} 24. Rdxe5 {[%emt 0:00:30]} Re7 {[%emt 0:00:30]} 25. Qb3 {[%emt 0:00:30]} Rae8 {[%emt 0:00:30]} 26. Qb5 {[%emt 0:00:30]} g6 {[%emt 0:00:30]} 27. Qb3 {[%emt 0:00:30]} Nc5 {[%emt 0:00:30]} 28. Rxe7 {[%emt 0:00:30]} Rxe7 {[%emt 0:00:30]} 29. Qd1 {[%emt 0:00:30]} Rxe1+ {[%emt 0:00:30]} 30. Qxe1 {[%emt 0:00:30]} Kf8 {[%emt 0:00:30]} 31. Qe3 {[%emt 0:00:30]} Kg7 {[%emt 0:00:30]} 32. Kf1 {[%emt 0:00:30]} Nd7 {[%emt 0:00:30]} 33. Ke2 {[%emt 0:00:30]} Ne5 {[%emt 0:00:30]} 34. Bd5 {[%emt 0:00:30]} c6 {[%emt 0:00:30]} 35. Bb3 {[%emt 0:00:30]} b5 {[%emt 0:00:30]} 36. f4 {[%emt 0:00:30]} Nd7 {[%emt 0:00:30]} 37. Qd4 {[%emt 0:00:30]} Qxd4 $11 {[%emt 0:00:30]} 38. cxd4 {[%emt 0:00:30]} f5 {[%emt 0:00:30]} 39. Be6 {[%emt 0:00:30]} Nb6 {[%emt 0:00:30]} 40. Kd3 {[%emt 0:00:30]} Kf6 {[%emt 0:00:30]} 41. Bb3 {[%emt 0:00:30]} h6 {[%emt 0:00:30]} 42. Kc3 {[%emt 0:00:30]} Nd7 {[%emt 0:00:30]} 43. Kb4 {[%emt 0:00:30]} Ke7 {[%emt 0:00:30]} 44. d5 {[%emt 0:00:30]} Kd6 {[%emt 0:00:30]} 45. dxc6 {[%emt 0:00:30]} bxc6 {[%emt 0:00:30]} 46. Bf7 {[%emt 0:00:30]} Nf8 {[%emt 0:00:30]} 47. Be8 {[%emt 0:00:30]} Kc7 {[%emt 0:00:30]} 48. Ka5 {[%emt 0:00:30]} Kb7 {[%emt 0:00:30]} 49. b3 {[%emt 0:00:30]} Kc7 {[%emt 0:00:30]} 50. Ka6 {[%emt 0:00:30]} Ne6 {[%emt 0:00:30]} 51. Bxg6 {[%emt 0:00:30]} Nd4 {[%emt 0:00:30]} 52. b4 {[%emt 0:00:30]} Kd7 {[%emt 0:00:30]} 53. Kb6 {[%emt 0:00:30]} Kd6 {[%emt 0:00:30]} 54. Be8 {[%emt 0:00:30]} Kd5 {[%emt 0:00:30]} 55. Bf7+ {[%emt 0:00:30]} Kd6 {[%emt 0:00:30]} 56. Bh5 {[%emt 0:00:30]} Ne6 {[%emt 0:00:30]} 57. Bf3 {[%emt 0:00:30]} Nd4 {[%emt 0:00:30]} 58. Bg2 {[%emt 0:00:30]} Kd7 {[%emt 0:00:30]} 59. Bh3 {[%emt 0:00:30]} Kd6 {[%emt 0:00:30]} 60. g4 {[%emt 0:00:30]} Ne2 {[%emt 0:00:30]} 61. g5 {[%emt 0:00:30]} Nxf4 {[%emt 0:00:30]} 62. gxh6 {[%emt 0:00:30]} Nd5+ {[%emt 0:00:30]} 63. Kb7 {[%emt 0:00:30]} Nf6 {[%emt 0:00:30]} 64. Bxf5 {[%emt 0:00:30]} 1-0

[Event "Catalan Youth Championship 2024"]
[Site "Cambrils"]
[Date "2024.03.25"]
[Round "4.7"]
[White "Presas Gharbi, Rayan"]
[Black "Perez Vidal, Ian"]
[Result "1-0"]
[ECO "C54"]
[WhiteElo "1705"]
[BlackElo "1828"]
[Annotator "NA RC"]
[PlyCount "63"]
[EventDate "2024.03.13"]
[EventType "swiss"]
[EventCountry "ESP"]
[SourceTitle "playchess.com"]
[Source "ChessBase"]
[SourceQuality "1"]
[TimeControl "5400+30"]

1. e4 {[%emt 0:00:01]} e5 {[%emt 0:00:19]} 2. Nf3 {[%emt 0:00:06]} Nc6 {[%emt 0:00:08]} 3. Bc4 {[%emt 0:00:06]} Nf6 {[%emt 0:00:10]} 4. d3 {[%emt 0:00:07]} Bc5 {[%emt 0:00:24]} 5. c3 {[%emt 0:00:59]} d6 {[%emt 0:00:25]} 6. a4 {[%emt 0:00:18] C54: Italienische Partie (Hauptvariante).} a6 {[%emt 0:00:45]} 7. O-O {[%emt 0:03:20]} Bg4 {[%emt 0:00:57]} 8. h3 {[%emt 0:00:46]} Bh5 {[%emt 0:04:49]} 9. Re1 {[%emt 0:02:05]} O-O {[%emt 0:01:39]} 10. Nbd2 {[%emt 0:01:13]} Qd7 {[%emt 0:01:00]} 11. Nf1 {[%emt 0:00:16]} Rfe8 {[%emt 0:10:03]} 12. b4 {[%emt 0:08:08]} Bb6 {[%emt 0:01:15]} (12... Ba7 $142) 13. Bg5 {[%emt 0:07:07]} d5 {[%emt 0:01:29]} 14. exd5 {[%emt 0:03:23]} Nxd5 {[%emt 0:00:36]} 15. Bxd5 {[%emt 0:03:45]} Qxd5 {[%emt 0:01:01]} 16. Be3 {[%emt 0:11:42]} Bxf3 {[%emt 0:07:46]} 17. gxf3 {[%emt 0:00:26]} (17. Qxf3 $15 Qxf3 (17... Qxd3 18. Rac1 $15) 18. gxf3) 17... Qd7 {[%emt 0:02:29]} 18. Bxb6 {[%emt 0:05:29]} cxb6 {[%emt 0:00:14]} 19. Kg2 {[%emt 0:00:09]} Re6 $19 {[%emt 0:00:44]} 20. f4 {[%emt 0:08:23]} Rg6+ {[%emt 0:00:59]} 21. Kh2 {[%emt 0:00:26]} exf4 {[%emt 0:01:02]} 22. Qf3 {[%emt 0:04:22]} Rh6 {[%emt 0:03:12]} 23. Re4 {[%emt 0:08:21]} g5 {[%emt 0:00:41]} 24. Qg2 {[%emt 0:05:59]} f5 {[%emt 0:01:15]} 25. Rxf4 {[%emt 0:07:11]} Qg7 {[%emt 0:01:55]} 26. Rxf5 {[%emt 0:07:02]} g4 {[%emt 0:00:28]} 27. Ne3 {[%emt 0:02:19]} Ne5 {[%emt 0:01:03]} 28. Qd5+ {[%emt 0:00:58]} Nf7 {[%emt 0:01:41]} 29. Nxg4 {[%emt 0:00:14]} Qxg4 {[%emt 0:00:38]} 30. Qxf7+ {[%emt 0:00:39]} Kh8 {[%emt 0:00:13]} 31. Qf6+ {[%emt 0:00:56]} Kg8 {[%emt 0:01:08]} 32. Rg5+ {[%emt 0:00:32]} 1-0

[Event "Catalan Youth Championship 2024"]
[Site "Cambrils"]
[Date "2024.03.25"]
[Round "4.8"]
[White "Hijarrubia Alvarez-Cuevas, Gonzalo"]
[Black "Pons Sancho, Roc"]
[Result "1-0"]
[ECO "B45"]
[WhiteElo "1827"]
[BlackElo "1704"]
[Annotator "NA RC"]
[PlyCount "97"]
[EventDate "2024.03.13"]
[EventType "swiss"]
[EventCountry "ESP"]
[SourceTitle "playchess.com"]
[Source "ChessBase"]
[SourceQuality "1"]
[TimeControl "5400+30"]

1. e4 {[%emt 0:00:04]} c5 {[%emt 0:00:05]} 2. Nf3 {[%emt 0:00:07]} Nc6 {[%emt 0:00:05]} 3. d4 {[%emt 0:00:05]} cxd4 {[%emt 0:00:04]} 4. Nxd4 {[%emt 0:00:06]} Nf6 {[%emt 0:00:08]} 5. Nc3 {[%emt 0:00:10]} e6 {[%emt 0:00:07]} 6. Nxc6 {[%emt 0:00:44]} bxc6 {[%emt 0:00:09]} 7. e5 {[%emt 0:00:04]} Nd5 {[%emt 0:00:34]} 8. Ne4 {[%emt 0:00:06]} Qc7 {[%emt 0:00:43]} 9. f4 {[%emt 0:00:15]} Be7 {[%emt 0:01:24]} 10. Nd6+ {[%emt 0:02:10] B45: Sizilianisch (Klassisches System).} Bxd6 {[%emt 0:04:07]} 11. exd6 {[%emt 0:00:07]} Qxd6 {[%emt 0:02:39]} 12. c4 {[%emt 0:01:18]} Qb4+ {[%emt 0:00:22]} 13. Bd2 {[%emt 0:00:06]} Qxb2 {[%emt 0:00:40]} 14. cxd5 {[%emt 0:00:05]} cxd5 {[%emt 0:00:23]} 15. Qc1 {[%emt 0:05:25]} Qxc1+ {[%emt 0:00:31]} 16. Rxc1 {[%emt 0:00:21]} O-O {[%emt 0:00:17]} 17. Bb4 {[%emt 0:00:52]} Rd8 {[%emt 0:00:57]} 18. Bd6 {[%emt 0:00:21]} a6 {[%emt 0:01:14]} 19. Bd3 {[%emt 0:00:39]} Bb7 {[%emt 0:00:32]} 20. Kf2 {[%emt 0:00:48]} h6 {[%emt 0:02:19]} 21. Rc2 {[%emt 0:00:39]} Rdc8 {[%emt 0:03:06]} 22. Rhc1 {[%emt 0:01:37]} Rxc2+ {[%emt 0:00:13]} 23. Rxc2 {[%emt 0:00:06]} Rc8 {[%emt 0:00:06]} 24. Rxc8+ {[%emt 0:00:23]} Bxc8 {[%emt 0:00:06]} 25. a4 {[%emt 0:00:07]} g5 {[%emt 0:00:28]} 26. g3 {[%emt 0:00:05]} f6 {[%emt 0:02:33]} 27. a5 {[%emt 0:00:23]} Kf7 {[%emt 0:00:29]} 28. Ke3 {[%emt 0:00:12]} gxf4+ {[%emt 0:01:37]} 29. gxf4 {[%emt 0:00:21]} e5 {[%emt 0:01:48]} 30. fxe5 {[%emt 0:00:06]} fxe5 {[%emt 0:00:07]} 31. Bxe5 {[%emt 0:00:08]} Ke6 {[%emt 0:00:34]} 32. Kf4 {[%emt 0:00:46]} d6 {[%emt 0:00:23]} 33. Bf5+ {[%emt 0:00:05]} Ke7 {[%emt 0:00:48]} 34. Bxc8 {[%emt 0:00:08]} dxe5+ {[%emt 0:00:15]} 35. Kxe5 {[%emt 0:00:05]} Kd8 {[%emt 0:00:24]} 36. Bxa6 {[%emt 0:00:06]} Kc7 {[%emt 0:00:05]} 37. Kxd5 {[%emt 0:00:06]} h5 {[%emt 0:00:14]} 38. h4 {[%emt 0:00:05]} Kb8 {[%emt 0:00:12]} 39. Be2 {[%emt 0:00:05]} Kb7 {[%emt 0:00:25]} 40. Bxh5 {[%emt 0:00:06]} Ka6 {[%emt 0:00:09]} 41. Be2+ {[%emt 0:00:05]} Kxa5 {[%emt 0:00:12]} 42. h5 {[%emt 0:00:04]} Kb6 {[%emt 0:00:13]} 43. h6 {[%emt 0:00:04]} Ka7 {[%emt 0:00:32]} 44. h7 {[%emt 0:00:05]} Kb7 {[%emt 0:00:13]} 45. h8=Q {[%emt 0:00:08]} Ka7 {[%emt 0:00:07]} 46. Qc8 {[%emt 0:00:19]} Kb6 {[%emt 0:00:10]} 47. Qc6+ {[%emt 0:00:07]} Ka7 {[%emt 0:00:23]} 48. Ba6 {[%emt 0:00:04]} Kb8 {[%emt 0:00:28]} 49. Qb7# {[%emt 0:00:05]} 1-0

[Event "Catalan Youth Championship 2024"]
[Site "Cambrils"]
[Date "2024.03.25"]
[Round "4.9"]
[White "Escoriza Pons, Xavier"]
[Black "Uber Gracia, Hugo"]
[Result "0-1"]
[ECO "D11"]
[WhiteElo "1941"]
[BlackElo "2237"]
[Annotator "RC"]
[PlyCount "192"]
[EventDate "2024.03.13"]
[EventType "swiss"]
[EventCountry "ESP"]
[SourceTitle "playchess.com"]
[Source "ChessBase"]
[SourceQuality "1"]
[TimeControl "5400+30"]

1. c4 {[%emt 1:31:00]} c6 {[%emt 1:31:00]} 2. Nf3 {[%emt 0:00:30]} Nf6 {[%emt 0:00:30]} 3. g3 {[%emt 0:00:30]} d5 {[%emt 0:00:30]} 4. Bg2 {[%emt 0:00:30]} Bf5 {[%emt 0:00:30]} 5. O-O {[%emt 0:00:30]} e6 {[%emt 0:00:30]} 6. d4 {[%emt 0:00:30]} h6 {[%emt 0:00:30]} 7. Nc3 {[%emt 0:00:30]} Nbd7 {[%emt 0:00:30]} 8. Nd2 {[%emt 0:00:30]} Be7 {[%emt 0:00:30]} 9. e4 {[%emt 0:00:30]} dxe4 {[%emt 0:00:30]} 10. Ndxe4 {[%emt 0:00:30]} Nb6 {[%emt 0:00:30]} 11. b3 {[%emt 0:00:30]} O-O {[%emt 0:00:30]} 12. Bb2 {[%emt 0:00:30]} a5 {[%emt 0:00:30]} 13. Qd2 {[%emt 0:00:30]} a4 {[%emt 0:00:30]} 14. Nxf6+ {[%emt 0:00:30]} Bxf6 {[%emt 0:00:30]} 15. Ne4 {[%emt 0:00:30]} Be7 {[%emt 0:00:30]} 16. Rfd1 {[%emt 0:00:30]} Qc7 {[%emt 0:00:30]} 17. Bc3 {[%emt 0:00:30]} Ra7 {[%emt 0:00:30]} 18. Ba5 {[%emt 0:00:30]} Rfa8 {[%emt 0:00:30]} 19. b4 {[%emt 0:00:30]} Rxa5 {[%emt 0:00:30]} 20. bxa5 {[%emt 0:00:30]} Nxc4 {[%emt 0:00:30]} 21. Qe2 {[%emt 0:00:30]} Nd6 {[%emt 0:00:30]} 22. Nxd6 {[%emt 0:00:30]} Bxd6 {[%emt 0:00:30]} 23. Be4 {[%emt 0:00:30]} Bxe4 {[%emt 0:00:30]} 24. Qxe4 {[%emt 0:00:30]} Rxa5 {[%emt 0:00:30]} 25. Rab1 {[%emt 0:00:30]} Rd5 {[%emt 0:00:30]} 26. Qc2 {[%emt 0:00:30]} a3 {[%emt 0:00:30]} 27. Qa4 {[%emt 0:00:30]} Kh7 {[%emt 0:00:30]} 28. Rdc1 {[%emt 0:00:30]} Be7 {[%emt 0:00:30]} 29. Qa7 {[%emt 0:00:30]} Rd7 {[%emt 0:00:30]} 30. Rb3 {[%emt 0:00:30]} Qc8 {[%emt 0:00:30]} 31. Qb6 {[%emt 0:00:30]} Bf6 {[%emt 0:00:30]} 32. Rc4 {[%emt 0:00:30]} Bd8 {[%emt 0:00:30]} 33. Qc5 {[%emt 0:00:30]} Be7 {[%emt 0:00:30]} 34. Qb6 {[%emt 0:00:30]} Qa8 {[%emt 0:00:30]} 35. Rf3 {[%emt 0:00:30]} Kg8 {[%emt 0:00:30]} 36. Rcc3 {[%emt 0:00:30]} Qa4 {[%emt 0:00:30]} 37. Qb3 {[%emt 0:00:30]} Qa5 {[%emt 0:00:30]} 38. Rfd3 {[%emt 0:00:30]} Qh5 {[%emt 0:00:30]} 39. Kg2 {[%emt 0:00:30]} Qe2 {[%emt 0:00:30]} 40. Re3 {[%emt 0:00:30]} Qg4 {[%emt 0:00:30]} 41. h3 {[%emt 0:00:30]} Qg6 {[%emt 0:00:30]} 42. Qa4 {[%emt 0:00:30]} Qg5 {[%emt 0:00:30]} 43. Rb3 {[%emt 0:00:30]} Qd5+ {[%emt 0:00:30]} 44. Rf3 {[%emt 0:00:30]} b5 {[%emt 0:00:30]} 45. Qa8+ {[%emt 0:00:30]} Kh7 {[%emt 0:00:30]} 46. Qa5 {[%emt 0:00:30]} Bd6 47. Qc3 b4 48. Qd3+ Kg8 49. Qa6 {[%emt 0:01:30]} Be7 {[%emt 0:02:00]} 50. Qc8+ {[%emt 0:00:30]} Rd8 {[%emt 0:00:30]} 51. Qc7 {[%emt 0:00:30]} Rd7 {[%emt 0:00:30]} 52. Qb8+ {[%emt 0:00:30]} Kh7 {[%emt 0:00:30]} 53. Qf4 {[%emt 0:00:30]} Bd6 {[%emt 0:00:30]} 54. Qc1 {[%emt 0:00:30]} Bf8 {[%emt 0:00:30]} 55. Qc2+ {[%emt 0:00:30]} Kg8 {[%emt 0:00:30]} 56. Qc1 {[%emt 0:00:30]} Qxd4 {[%emt 0:00:30]} 57. Qxc6 {[%emt 0:00:30]} Qd2 {[%emt 0:00:30]} 58. Qc8 {[%emt 0:00:30]} Rd8 {[%emt 0:00:30]} 59. Qc7 {[%emt 0:00:30]} f6 {[%emt 0:00:30]} 60. Rbe3 {[%emt 0:00:30]} e5 {[%emt 0:00:30]} 61. Qc4+ {[%emt 0:00:30]} Qd5 {[%emt 0:00:30]} 62. Qxd5+ {[%emt 0:00:30]} Rxd5 {[%emt 0:00:30]} 63. Rd3 {[%emt 0:00:30]} Rc5 {[%emt 0:00:30]} 64. Rd2 {[%emt 0:00:30]} Rc4 {[%emt 0:00:30]} 65. Rb3 {[%emt 0:00:30]} Bc5 {[%emt 0:00:30]} 66. Kf3 {[%emt 0:00:30]} Bd4 {[%emt 0:00:30]} 67. Ke2 {[%emt 0:00:30]} e4 {[%emt 0:00:30]} 68. h4 {[%emt 0:00:30]} h5 {[%emt 0:00:30]} 69. Rd1 {[%emt 0:00:30]} Kf7 {[%emt 0:00:30]} 70. f3 {[%emt 0:00:30]} f5 {[%emt 0:00:30]} 71. fxe4 {[%emt 0:00:30]} fxe4 {[%emt 0:00:30]} 72. Rf1+ {[%emt 0:00:30]} Ke6 {[%emt 0:00:30]} 73. Kd2 {[%emt 0:00:30]} Bf6 {[%emt 0:00:30]} 74. Rc1 {[%emt 0:00:30]} Bc3+ {[%emt 0:00:30]} 75. Ke2 {[%emt 0:00:30]} Kf5 {[%emt 0:00:30]} 76. Rf1+ {[%emt 0:00:30]} Kg4 {[%emt 0:00:30]} 77. Rg1 {[%emt 0:00:30]} Rd4 {[%emt 0:00:30]} 78. Ke3 {[%emt 0:00:30]} Rd2 {[%emt 0:00:30]} 79. Kxe4 {[%emt 0:00:30]} Rxa2 {[%emt 0:00:30]} 80. Rbb1 {[%emt 0:00:30]} Re2+ {[%emt 0:00:30]} 81. Kd3 {[%emt 0:00:30]} Rd2+ {[%emt 0:00:30]} 82. Ke4 {[%emt 0:00:30]} a2 {[%emt 0:00:30]} 83. Rbf1 {[%emt 0:00:30]} a1=Q {[%emt 0:00:30]} 84. Rxa1 {[%emt 0:00:30]} Bxa1 85. Rxa1 {[%emt 0:00:30]} Re2+ {[%emt 0:01:00]} 86. Kd3 {[%emt 0:00:30]} Re7 {[%emt 0:00:30]} 87. Rb1 {[%emt 0:00:30]} Rb7 {[%emt 0:00:30]} 88. Ke4 {[%emt 0:00:30]} b3 {[%emt 0:00:30]} 89. Ke3 {[%emt 0:00:30]} Kxg3 {[%emt 0:00:30]} 90. Rg1+ {[%emt 0:00:30]} Kxh4 {[%emt 0:00:30]} 91. Kf4 {[%emt 0:00:30]} Rb4+ {[%emt 0:00:30]} 92. Kf3 {[%emt 0:00:30]} b2 {[%emt 0:00:30]} 93. Rh1+ {[%emt 0:00:30]} Kg5 {[%emt 0:00:30]} 94. Rg1+ {[%emt 0:00:30]} Kf5 {[%emt 0:00:30]} 95. Rb1 {[%emt 0:00:30]} Rb3+ {[%emt 0:00:30]} 96. Ke2 {[%emt 0:00:30]} h4 {[%emt 0:00:30]} 0-1

[Event "Catalan Youth Championship 2024"]
[Site "Cambrils"]
[Date "2024.03.25"]
[Round "4.10"]
[White "Prada Villagrasa, Pau Manel"]
[Black "Valle Luis, Liam"]
[Result "1-0"]
[ECO "C42"]
[WhiteElo "2103"]
[BlackElo "1852"]
[Annotator "RC"]
[PlyCount "111"]
[EventDate "2024.03.13"]
[EventType "swiss"]
[EventCountry "ESP"]
[SourceTitle "playchess.com"]
[Source "ChessBase"]
[SourceQuality "1"]
[TimeControl "5400+30"]

1. e4 {[%emt 0:00:03]} e5 {[%emt 0:00:04]} 2. Nf3 {[%emt 0:00:10]} Nf6 {[%emt 0:00:04]} 3. Nxe5 {[%emt 0:00:17]} d6 {[%emt 0:00:04]} 4. Nf3 {[%emt 0:00:14]} Nxe4 {[%emt 0:00:04]} 5. d4 {[%emt 0:00:15]} d5 {[%emt 0:00:11]} 6. Bd3 {[%emt 0:00:14]} Bd6 {[%emt 0:00:23]} 7. O-O {[%emt 0:00:18]} O-O {[%emt 0:00:09]} 8. c4 {[%emt 0:00:36]} c6 {[%emt 0:00:17]} 9. Qc2 {[%emt 0:00:35]} Re8 {[%emt 0:01:17]} 10. Nc3 {[%emt 0:00:44]} Nxc3 {[%emt 0:19:40]} 11. bxc3 {[%emt 0:08:44]} h6 {[%emt 0:00:56]} 12. h3 {[%emt 0:01:09]} Nd7 {[%emt 0:01:34]} 13. a4 {[%emt 0:00:39]} Nf6 {[%emt 0:00:28]} 14. a5 {[%emt 0:00:41]} a6 {[%emt 0:02:46]} 15. Ba3 {[%emt 0:01:49]} Be6 {[%emt 0:01:32]} 16. Bxd6 {[%emt 0:02:33]} Qxd6 {[%emt 1:09:01]} 17. c5 {[%emt 0:00:43]} Qc7 {[%emt 0:00:30]} 18. Rfb1 {[%emt 0:02:35]} Rad8 {[%emt 0:00:00]} 19. Rb6 {[%emt 0:03:08]} Bc8 {[%emt 0:00:00]} 20. Rb3 {[%emt 0:10:02]} Re7 {[%emt 0:00:00]} 21. Ne5 {[%emt 0:00:53]} Nd7 {[%emt 0:00:00]} 22. f4 {[%emt 0:04:13]} Nf8 {[%emt 0:00:00]} 23. Qf2 {[%emt 0:21:47]} f6 {[%emt 0:03:00]} 24. Ng6 {[%emt 0:00:24]} Nxg6 {[%emt 0:00:00]} 25. Bxg6 {[%emt 0:00:05]} f5 {[%emt 0:00:00]} 26. g3 {[%emt 0:02:19]} Rf8 {[%emt 0:00:00]} 27. Rbb1 {[%emt 0:08:17]} Rf6 {[%emt 0:00:00]} 28. Bh5 {[%emt 0:00:12]} g6 {[%emt 0:00:00]} 29. Bf3 {[%emt 0:00:14]} Rg7 {[%emt 0:00:00]} 30. Kh2 {[%emt 0:07:03]} g5 {[%emt 0:00:00]} 31. Qd2 {[%emt 0:01:27]} g4 {[%emt 0:00:00]} 32. Bg2 {[%emt 0:00:13]} Re7 {[%emt 0:00:00]} 33. h4 {[%emt 0:24:24]} Kf7 {[%emt 0:00:00]} 34. c4 {[%emt 0:00:30]} dxc4 {[%emt 0:00:00]} 35. d5 {[%emt 0:00:00]} cxd5 {[%emt 0:00:00]} 36. Qxd5+ {[%emt 0:00:00]} Be6 {[%emt 0:00:31]} 37. Qd6 {[%emt 0:00:00]} Bc8 {[%emt 0:01:31]} 38. Qd5+ {[%emt 0:00:00]} Be6 {[%emt 0:00:10]} 39. Qe5 {[%emt 0:02:30]} Bc8 {[%emt 0:01:09]} 40. Bd5+ {[%emt 0:00:00]} Kg7 {[%emt 0:01:10]} 41. Qd4 {[%emt 0:01:00]} Re2+ {[%emt 0:02:30]} 42. Kh1 {[%emt 0:00:00]} Qe7 {[%emt 0:00:30]} 43. Rb6 {[%emt 0:00:00]} Re1+ {[%emt 0:01:28]} 44. Rxe1 {[%emt 0:00:00]} Qxe1+ {[%emt 0:00:02]} 45. Kh2 {[%emt 0:00:00]} Qe2+ {[%emt 0:00:25]} 46. Bg2 {[%emt 0:00:00]} Qe7 {[%emt 0:00:46]} 47. c6 {[%emt 0:03:00]} bxc6 {[%emt 0:00:17]} 48. Rxc6 {[%emt 0:00:00]} Bb7 {[%emt 0:00:58]} 49. Rxf6 {[%emt 0:00:00]} Qxf6 {[%emt 0:00:12]} 50. Qd7+ {[%emt 0:00:00]} Qf7 {[%emt 0:00:18]} 51. Qxf7+ {[%emt 0:00:00]} Kxf7 {[%emt 0:00:23]} 52. Bxb7 {[%emt 0:00:00]} c3 {[%emt 0:00:13]} 53. Bd5+ {[%emt 0:00:00]} Ke7 {[%emt 0:00:10]} 54. Bb3 {[%emt 0:03:30]} Kd6 {[%emt 0:00:19]} 55. Bc2 {[%emt 0:00:00]} Kc5 {[%emt 0:00:22]} 56. Bxf5 {[%emt 0:00:00]} 1-0